[Event "WYCC 2018 O18"]
[Site "Halkidiki"]
[Date "2018.10.23"]
[Round "5"]
[White "Polyakov, Fedor"]
[Black "Varacalli, Francisco"]
[Result "1-0"]
[ECO "E67"]
[WhiteElo "2036"]
[BlackElo "2334"]
[Annotator "NA"]
[PlyCount "109"]
[EventDate "2018.10.20"]
[EventType "swiss"]
[EventCountry "GRE"]
[SourceTitle "playchess.com"]
[Source "ChessBase"]
[SourceQuality "1"]
[TimeControl "40/5400+30:1800+30"]

1. d4 {[%emt 0:00:00]} Nf6 {[%emt 0:01:38]} 2. c4 {[%emt 0:00:12]} g6 {[%emt 0:00:23]} 3. Nc3 {[%emt 0:00:07]} Bg7 {[%emt 0:00:08]} 4. Nf3 {[%emt 0:00:05]} d6 {[%emt 0:02:30]} 5. g3 {[%emt 0:00:08]} O-O {[%emt 0:00:33]} 6. Bg2 {[%emt 0:00:01]} Nbd7 {[%emt 0:00:16]} 7. O-O {[%emt 0:00:03]} e5 {[%emt 0:00:30]} 8. d5 {[%emt 0:00:30]} a5 {[%emt 0:01:02]} 9. Bg5 {[%emt 0:00:43] E67: King's Indian: Fianchetto: 6...Nbd7} (9. e4 Nc5 10. Qc2 Nh5 11. Be3 f5 12. exf5 Bxf5 13. Qd2 b6 14. Ng5 Nf6 15. Bxc5 bxc5 16. Bh3 Bxh3 17. Nxh3 Qd7 18. Kg2 Qg4 19. f4 Nh5 20. Rae1 exf4 21. Nxf4 Bh6 22. Nce2 Rae8 23. Qxa5 Bxf4 24. Nxf4 Rxe1 {0-1 (24) Golubov,S (2481)-Gupta,A (2637) Abu Dhabi 2016}) 9... h6 {[%emt 0:02:08]} 10. Bxf6 {[%emt 0:00:51]} Bxf6 {[%emt 0:03:05]} 11. Ne1 $146 {[%emt 0:09:51]} ({Predecessor:} 11. Qc2 Nc5 12. a3 a4 13. e4 Bg4 14. Nd2 Bg5 15. f4 exf4 16. gxf4 Bf6 17. Rae1 Re8 {0-1 (37) Timm,C (1651)-Silz,E (2002) Berlin 2018}) 11... Bg7 {[%emt 0:09:48]} 12. Nd3 {[%emt 0:02:21]} f5 {[%emt 0:06:27]} 13. e4 {[%emt 0:00:39]} f4 {[%emt 0:06:42]} 14. g4 {[%emt 0:02:00]} f3 {[%emt 0:04:51]} ({Better is} 14... b6 $17) 15. Bxf3 {[%emt 0:00:10]} Qh4 {[%emt 0:01:57]} 16. Bg2 {[%emt 0:02:08]} h5 {[%emt 0:17:03]} 17. h3 {[%emt 0:04:08]} Nb6 {[%emt 0:02:30]} 18. c5 {[%emt 0:01:47]} dxc5 {[%emt 0:01:40]} 19. Nxc5 {[%emt 0:03:11]} hxg4 {[%emt 0:00:15]} 20. hxg4 {[%emt 0:00:25]} Bh6 {[%emt 0:02:14]} 21. Qd3 {[%emt 0:05:29]} Bxg4 {[%emt 0:01:09]} 22. Ne2 $19 {[%emt 0:04:34]} Bxe2 {[%emt 0:04:28]} 23. Qxe2 {[%emt 0:01:14]} Bf4 {[%emt 0:00:15]} 24. Rfd1 {[%emt 0:01:44]} Nc4 {[%emt 0:03:16]} 25. Rd3 {[%emt 0:05:32]} Qh2+ {[%emt 0:04:14]} 26. Kf1 {[%emt 0:00:11]} Bg3 {[%emt 0:00:26]} 27. Rxg3 {[%emt 0:16:25]} Qxg3 {[%emt 0:00:27]} 28. Kg1 {[%emt 0:01:28]} Qh4 {[%emt 0:01:48]} 29. Rc1 {[%emt 0:01:25]} Nd6 {[%emt 0:00:49]} 30. Rc3 {[%emt 0:00:23]} Rf4 {[%emt 0:03:08]} 31. Ne6 {[%emt 0:06:50]} Rf7 {[%emt 0:04:39]} 32. Rg3 {[%emt 0:03:29]} Rh7 {[%emt 0:01:41]} 33. Rxg6+ {[%emt 0:03:14]} Kh8 {[%emt 0:00:35]} 34. f4 {[%emt 0:02:01]} Rg8 {[%emt 0:01:15]} 35. f5 {[%emt 0:05:34]} Ne8 {[%emt 0:00:55]} 36. Qf3 {[%emt 0:02:37]} Rh6 {[%emt 0:01:06]} 37. Rxg8+ {[%emt 0:02:11]} Kxg8 {[%emt 0:00:02]} 38. Qc3 {[%emt 0:00:14]} Qh2+ {[%emt 0:01:08]} 39. Kf1 {[%emt 0:00:01]} Rh7 {[%emt 0:02:07]} 40. Qxa5 {[%emt 0:00:00]} Qh6 {[%emt 0:00:00]} 41. Qc3 {[%emt 0:11:26]} Qf6 {[%emt 0:05:37]} 42. a4 {[%emt 0:07:01]} Rh4 {[%emt 0:03:12]} 43. Qg3+ {[%emt 0:03:36]} Kh8 {[%emt 0:00:45]} 44. Kg1 {[%emt 0:04:26]} Nd6 {[%emt 0:00:56]} 45. Nf8 {[%emt 0:02:55]} Rh5 {[%emt 0:10:55]} 46. Ng6+ {[%emt 0:02:54]} Kh7 {[%emt 0:00:04]} 47. Qxe5 {[%emt 0:02:07]} Qxe5 {[%emt 0:01:24]} 48. Nxe5 {[%emt 0:00:02]} Kg7 {[%emt 0:02:44]} 49. Nd7 {[%emt 0:01:01]} Rh4 {[%emt 0:00:33]} 50. f6+ {[%emt 0:00:28]} Kg6 {[%emt 0:00:34]} 51. e5 {[%emt 0:00:17]} Rh7 {[%emt 0:00:41]} 52. Nf8+ {[%emt 0:00:11]} Kf5 {[%emt 0:00:12]} 53. Nxh7 {[%emt 0:00:03]} Kxe5 {[%emt 0:00:09]} 54. Bf3 {[%emt 0:00:30]} Kf5 {[%emt 0:00:10]} 55. Bh5 {[%emt 0:00:09]} 1-0

[Event "WYCC 2018 O18"]
[Site "Halkidiki"]
[Date "2018.10.24"]
[Round "6"]
[White "Gumularz, Szymon"]
[Black "Ahmadzada, Ahmad"]
[Result "1-0"]
[ECO "E81"]
[WhiteElo "2441"]
[BlackElo "2343"]
[Annotator "NA"]
[PlyCount "69"]
[EventDate "2018.10.20"]
[EventType "swiss"]
[EventCountry "GRE"]
[SourceTitle "playchess.com"]
[Source "ChessBase"]
[SourceQuality "1"]
[TimeControl "40/5400+30:1800+30"]

1. c4 {[%emt 0:00:00]} Nf6 {[%emt 0:00:00]} 2. Nc3 {[%emt 0:00:00]} g6 {[%emt 0:00:29]} 3. e4 {[%emt 0:00:30]} d6 {[%emt 0:00:12]} 4. d4 {[%emt 0:00:05]} Bg7 {[%emt 0:00:05]} 5. f3 {[%emt 0:00:31]} O-O {[%emt 0:00:11]} 6. Be3 {[%emt 0:00:02]} c5 {[%emt 0:00:05]} 7. Nge2 {[%emt 0:00:37]} cxd4 {[%emt 0:00:17]} 8. Nxd4 {[%emt 0:00:06]} Nc6 {[%emt 0:00:04]} 9. Be2 {[%emt 0:07:18]} Bd7 {[%emt 0:00:11]} 10. O-O {[%emt 0:00:15]} Nxd4 {[%emt 0:00:09]} 11. Bxd4 {[%emt 0:00:05]} Bc6 {[%emt 0:00:15]} 12. Qd2 {[%emt 0:00:20]} a5 {[%emt 0:00:11]} 13. b3 {[%emt 0:01:04]} Nd7 {[%emt 0:00:11]} 14. Be3 {[%emt 0:00:05]} Nc5 {[%emt 0:00:15]} 15. Rac1 {[%emt 0:03:17] LiveBook: 223 Games} e6 {[%emt 0:01:04] B38: Sizilianisch (Maroczy-Aufbau)} 16. Rfd1 {[%emt 0:02:05]} Be5 {[%emt 0:00:18]} 17. g3 {[%emt 0:00:18]} (17. Rc2 Qe7 18. Nb5 Qh4 19. g3 Bxg3 20. hxg3 Qxg3+ 21. Kf1 Nxe4 22. Qd3 f5 23. Nd4 f4 24. Nxc6 fxe3 25. Qxe3 Rf4 26. Nd4 Rh4 27. Qg1 Rh1 {0-1 (27) Lupulescu,C (2618)-Iturrizaga Bonelli,E (2650) Baku 2016 CBM 175 [Iotov,V]}) 17... Qe7 {[%emt 0:08:47]} 18. Nb5 $146 {[%emt 0:02:55]} ({Vorgänger:} 18. Bd4 Rfd8 19. Qe3 Bxd4 20. Rxd4 e5 21. Rd2 Ne6 22. Bf1 Nd4 {0-1 (49) Kyrkjebo,E (2083)-Martinsen,S (2201) Norway 2016}) 18... b6 {[%emt 0:07:32]} 19. Bg5 {[%emt 0:05:41]} f6 {[%emt 0:37:31]} 20. Bh6 {[%emt 0:01:19]} Rfc8 {[%emt 0:01:48]} 21. f4 {[%emt 0:20:04]} Nxe4 {[%emt 0:00:09] [#]} 22. Qe3 $1 {[%emt 0:01:36]} Bb2 {[%emt 0:03:18]} 23. Rb1 {[%emt 0:00:53]} Bxb5 {[%emt 0:01:41]} 24. cxb5 {[%emt 0:01:08]} Nc3 {[%emt 0:00:49]} 25. Rxb2 {[%emt 0:00:17]} Nxd1 {[%emt 0:00:07]} 26. Bxd1 {[%emt 0:00:03]} d5 {[%emt 0:07:52]} 27. Kg2 {[%emt 0:05:12]} Rc5 {[%emt 0:01:56]} 28. Bg4 {[%emt 0:01:09]} f5 {[%emt 0:03:45]} 29. Bf3 {[%emt 0:02:30]} Rxb5 {[%emt 0:04:00]} 30. Rc2 {[%emt 0:01:15]} Re8 {[%emt 0:01:45]} 31. Rc6 {[%emt 0:01:33]} Rc5 {[%emt 0:00:30]} 32. Rxb6 {[%emt 0:00:27]} Rc2+ {[%emt 0:00:21]} 33. Kh3 {[%emt 0:00:14]} Qf7 {[%emt 0:01:31]} 34. Qe5 $18 {[%emt 0:01:38]} g5 {[%emt 0:01:49]} 35. fxg5 {[%emt 0:00:52]} 1-0

[Event "WYCC 2018 O18"]
[Site "Halkidiki"]
[Date "2018.10.24"]
[Round "6"]
[White "Fawzy, Adham"]
[Black "Risting, Eivind Olav"]
[Result "1/2-1/2"]
[ECO "B12"]
[WhiteElo "2439"]
[BlackElo "2299"]
[Annotator "ChessBase"]
[PlyCount "79"]
[EventDate "2018.10.20"]
[EventType "swiss"]
[EventCountry "GRE"]
[SourceTitle "playchess.com"]
[Source "ChessBase"]
[SourceQuality "1"]
[TimeControl "40/5400+30:1800+30"]

1. e4 {[%emt 0:00:00]} c6 {[%emt 0:00:00]} 2. d4 {[%emt 0:00:10]} d5 {[%emt 0:00:00]} 3. e5 {[%emt 0:00:07]} Bf5 {[%emt 0:00:16]} 4. h4 {[%emt 0:00:28]} h5 {[%emt 0:01:04]} 5. Bd3 {[%emt 0:00:10]} Bxd3 {[%emt 0:00:15]} 6. Qxd3 {[%emt 0:00:02]} e6 {[%emt 0:00:29]} 7. Bg5 {[%emt 0:00:08]} Be7 {[%emt 0:00:43]} 8. Bxe7 {[%emt 0:01:22]} Nxe7 {[%emt 0:01:43]} 9. Nf3 {[%emt 0:00:40]} Qb6 {[%emt 0:04:54]} 10. Nbd2 {[%emt 0:05:25]} c5 {[%emt 0:11:41]} 11. c4 {[%emt 0:02:19]} Nbc6 {[%emt 0:04:26]} 12. cxd5 {[%emt 0:04:49]} Nb4 {[%emt 0:26:34]} 13. Qb3 {[%emt 0:02:05]} Nbxd5 {[%emt 0:00:28]} 14. dxc5 {[%emt 0:01:17]} Qxc5 {[%emt 0:01:13]} 15. O-O {[%emt 0:10:45]} O-O {[%emt 0:00:33]} 16. Rac1 {[%emt 0:02:55]} Qb6 {[%emt 0:07:58]} 17. Qc2 {[%emt 0:15:40]} Rac8 {[%emt 0:01:29]} 18. Nc4 {[%emt 0:00:26]} Qa6 {[%emt 0:02:29]} 19. Qe4 {[%emt 0:01:30]} Nf5 {[%emt 0:07:12]} 20. a3 {[%emt 0:13:08]} b5 {[%emt 0:02:10]} 21. Ncd2 {[%emt 0:00:22]} Rxc1 {[%emt 0:04:54]} 22. Rxc1 {[%emt 0:00:01]} Rc8 {[%emt 0:00:08]} 23. Rc2 {[%emt 0:00:08]} Rc6 {[%emt 0:00:54]} 24. Kh2 {[%emt 0:08:13]} Qc8 {[%emt 0:01:02]} 25. Rxc6 {[%emt 0:00:03]} Qxc6 {[%emt 0:00:04]} 26. Nd4 {[%emt 0:00:25]} Qc1 {[%emt 0:05:39]} 27. Nxf5 {[%emt 0:01:19]} Qxd2 {[%emt 0:00:14]} 28. Qd4 {[%emt 0:00:08]} Qf4+ {[%emt 0:08:36]} 29. Qxf4 {[%emt 0:00:25]} Nxf4 {[%emt 0:00:02]} 30. Ne7+ {[%emt 0:07:54]} Kf8 {[%emt 0:00:06]} 31. Nc6 {[%emt 0:00:02]} a6 {[%emt 0:00:17]} 32. b4 {[%emt 0:02:32]} Nd3 {[%emt 0:01:11]} 33. Kg3 {[%emt 0:00:36]} Ke8 {[%emt 0:00:25]} 34. f4 {[%emt 0:03:38]} Kd7 {[%emt 0:01:06]} 35. Nd4 {[%emt 0:04:22]} Nb2 {[%emt 0:00:38]} 36. Kf3 {[%emt 0:01:53]} Nc4 {[%emt 0:00:09]} 37. Nc2 {[%emt 0:00:02]} Kc6 {[%emt 0:01:01]} 38. Ke4 {[%emt 0:00:05]} g6 {[%emt 0:03:06]} 39. Nd4+ {[%emt 0:00:22]} Kb6 {[%emt 0:02:10]} 40. Nc2 {[%emt 0:00:00]} 1/2-1/2

[Event "WYCC 2018 O18"]
[Site "Halkidiki"]
[Date "2018.10.24"]
[Round "6"]
[White "Parvanyan, Ashot"]
[Black "Goncalves, Davi Sulzbacher"]
[Result "1-0"]
[ECO "A33"]
[WhiteElo "2428"]
[BlackElo "2177"]
[Annotator "RC"]
[PlyCount "107"]
[EventDate "2018.10.20"]
[EventType "swiss"]
[EventCountry "GRE"]
[SourceTitle "playchess.com"]
[Source "ChessBase"]
[SourceQuality "1"]
[TimeControl "40/5400+30:1800+30"]

1. Nf3 {[%emt 0:00:00]} c5 {[%emt 0:00:00]} 2. c4 {[%emt 0:00:34]} Nc6 {[%emt 0:00:27]} 3. d4 {[%emt 0:00:43]} cxd4 {[%emt 0:00:19]} 4. Nxd4 {[%emt 0:00:08]} Nf6 {[%emt 0:04:14]} 5. Nc3 {[%emt 0:00:32]} e6 {[%emt 0:01:26]} 6. g3 {[%emt 0:01:55]} Bc5 {[%emt 0:01:22]} 7. Nb3 {[%emt 0:03:15]} Be7 {[%emt 0:01:41]} 8. Bg2 {[%emt 0:06:42]} d6 {[%emt 0:01:31]} 9. O-O {[%emt 0:01:22]} O-O {[%emt 0:00:27]} 10. Nd4 {[%emt 0:03:02]} Bd7 {[%emt 0:04:58]} 11. Ndb5 {[%emt 0:07:57]} Qb8 {[%emt 0:05:22]} 12. Bf4 {[%emt 0:05:30]} Ne5 {[%emt 0:01:54]} 13. b3 {[%emt 0:09:48]} a6 {[%emt 0:03:40]} 14. Nd4 {[%emt 0:00:27]} Rc8 {[%emt 0:06:48]} 15. Rc1 {[%emt 0:04:57]} Ra7 {[%emt 0:02:11]} 16. a4 {[%emt 0:08:57]} b6 {[%emt 0:02:30]} 17. Qd2 {[%emt 0:06:31]} Ng6 {[%emt 0:04:02]} 18. Be3 {[%emt 0:00:28]} Ng4 {[%emt 0:00:46]} 19. Bg5 {[%emt 0:00:52]} Nf6 {[%emt 0:06:40]} 20. h3 {[%emt 0:05:14]} h6 {[%emt 0:00:59]} 21. Be3 {[%emt 0:01:00]} Rac7 {[%emt 0:00:59]} 22. f4 {[%emt 0:07:25]} Nh5 {[%emt 0:21:45]} 23. g4 {[%emt 0:07:27]} Nhxf4 {[%emt 0:01:57]} 24. Bxf4 {[%emt 0:01:00]} e5 {[%emt 0:00:59]} 25. Nd5 {[%emt 0:02:00]} exf4 {[%emt 0:00:27]} 26. Nxe7+ {[%emt 0:06:17]} Nxe7 {[%emt 0:00:02]} 27. Qxf4 {[%emt 0:00:08]} Be8 {[%emt 0:00:32]} 28. Qxd6 {[%emt 0:01:02]} Rd8 {[%emt 0:00:43]} 29. Qf4 {[%emt 0:00:07]} Ng6 {[%emt 0:00:54]} 30. Qf2 {[%emt 0:00:10]} Rd6 {[%emt 0:01:58]} 31. Nf5 {[%emt 0:00:51]} Rf6 {[%emt 0:03:20]} 32. Nxh6+ {[%emt 0:00:23]} Kh7 {[%emt 0:00:07]} 33. Nf5 {[%emt 0:00:08]} Re7 {[%emt 0:00:43]} 34. g5 {[%emt 0:03:31]} Rxf5 {[%emt 0:00:19]} 35. Qxf5 {[%emt 0:00:03]} Rxe2 {[%emt 0:01:57]} 36. Rf2 {[%emt 0:03:14]} Re5 {[%emt 0:00:36]} 37. Qg4 {[%emt 0:00:19]} Re3 {[%emt 0:00:33]} 38. Rf3 {[%emt 0:03:20]} Qe5 {[%emt 0:00:16]} 39. Rcf1 {[%emt 0:00:41]} Re4 {[%emt 0:01:05]} 40. Qg3 {[%emt 0:00:00]} Qc5+ {[%emt 0:00:00]} 41. Qf2 {[%emt 0:05:53]} Qe7 {[%emt 0:03:52]} 42. Rxf7 {[%emt 0:16:12]} Bxf7 {[%emt 0:00:58]} 43. Bxe4 {[%emt 0:00:04]} Qxe4 {[%emt 0:00:24]} 44. Qxf7 {[%emt 0:00:07]} Qe3+ {[%emt 0:00:51]} 45. Qf2 {[%emt 0:01:44]} Qxg5+ {[%emt 0:05:12]} 46. Kh2 {[%emt 0:01:48]} Qe5+ {[%emt 0:02:51]} 47. Qg3 {[%emt 0:00:10]} Qb2+ {[%emt 0:01:50]} 48. Rf2 {[%emt 0:00:09]} Qd4 {[%emt 0:00:09]} 49. Qf3 {[%emt 0:05:19]} Qe5+ {[%emt 0:00:24]} 50. Kh1 {[%emt 0:00:40]} Qe1+ {[%emt 0:00:56]} 51. Rf1 {[%emt 0:00:07]} Qe5 {[%emt 0:01:36]} 52. Qf5 {[%emt 0:00:28]} Qe8 {[%emt 0:04:15]} 53. Rg1 {[%emt 0:00:42]} Qc6+ {[%emt 0:00:13]} 54. Qd5 {[%emt 0:00:21]} 1-0

[Event "WYCC 2018 O18"]
[Site "Halkidiki"]
[Date "2018.10.24"]
[Round "6"]
[White "Burovic, Rijad"]
[Black "Rengifo Blancas, Renzo Jhonathan"]
[Result "0-1"]
[ECO "C45"]
[WhiteElo "2380"]
[BlackElo "2123"]
[Annotator "NA"]
[PlyCount "98"]
[EventDate "2018.10.20"]
[EventType "swiss"]
[EventCountry "GRE"]
[SourceTitle "playchess.com"]
[Source "ChessBase"]
[SourceQuality "1"]
[TimeControl "40/5400+30:1800+30"]

1. e4 {[%emt 0:01:34]} e5 {[%emt 0:00:00]} 2. Nf3 {[%emt 0:00:26]} Nc6 {[%emt 0:00:00]} 3. d4 {[%emt 0:00:14]} exd4 {[%emt 0:00:00]} 4. Nxd4 {[%emt 0:00:09]} Nf6 {[%emt 0:00:48]} 5. Nxc6 {[%emt 0:01:49]} bxc6 {[%emt 0:00:04]} 6. e5 {[%emt 0:00:21]} Qe7 {[%emt 0:00:15]} 7. Qe2 {[%emt 0:00:10]} Nd5 {[%emt 0:00:05]} 8. c4 {[%emt 0:02:26]} Nb6 {[%emt 0:00:49]} 9. Nc3 {[%emt 0:02:28]} Qe6 {[%emt 0:02:27]} 10. Qe4 {[%emt 0:01:10]} d5 {[%emt 0:37:55] C45: Scotch Game} (10... g6 11. Bd2 Ba6 12. c5 Nc4 13. Bg5 Bxc5 14. O-O-O O-O 15. Qf4 d5 16. exd6 Bxd6 17. Rxd6 cxd6 18. Bf6 d5 19. b3 Rab8 20. Be2 c5 21. Rd1 Rfe8 22. Nxd5 {1-0 (22) Van Foreest,J (2629)-Tari,A (2599) Wijk aan Zee 2018}) 11. exd6 $1 {[%emt 0:02:01] LiveBook: 56 Games} cxd6 {[%emt 0:00:49]} 12. Be3 {[%emt 0:10:17]} Qxe4 {[%emt 0:06:49]} 13. Nxe4 {[%emt 0:00:12]} d5 {[%emt 0:11:35]} 14. cxd5 {[%emt 0:07:22]} Nxd5 {[%emt 0:01:09]} 15. Bc5 {[%emt 0:04:52]} Bf5 {[%emt 0:04:03]} 16. Bxf8 {[%emt 0:06:18]} Kxf8 {[%emt 0:00:06]} 17. Nd6 {[%emt 0:02:43]} Bg6 $146 {[%emt 0:02:08]} ({Predecessor:} 17... Be6 18. O-O-O {½-½ (40) Kumar,G (2231)-Khusenkhojaev,M (2451) Bhopal 2017}) 18. O-O-O {[%emt 0:03:33]} Ke7 {[%emt 0:01:07]} 19. Nb7 {[%emt 0:15:23]} Rab8 {[%emt 0:09:53]} 20. Na5 {[%emt 0:01:51]} Rhc8 {[%emt 0:03:55]} 21. Bc4 {[%emt 0:01:26]} Rb5 {[%emt 0:02:57]} 22. Nb3 {[%emt 0:07:39]} Rb4 {[%emt 0:03:29]} 23. Rhe1+ {[%emt 0:03:13]} Kd6 {[%emt 0:00:44]} 24. Rd4 {[%emt 0:01:38]} Ra4 {[%emt 0:05:37]} 25. a3 {[%emt 0:07:27]} Rb8 {[%emt 0:00:05]} 26. Nd2 {[%emt 0:01:04]} Kc5 {[%emt 0:00:34]} 27. Rh4 {[%emt 0:00:42]} a5 {[%emt 0:02:07]} 28. b3 {[%emt 0:01:53]} Rxa3 {[%emt 0:00:41]} 29. Kb2 {[%emt 0:07:25]} Ra4 {[%emt 0:00:03]} 30. Ne4+ {[%emt 0:00:54]} Bxe4 {[%emt 0:00:03]} 31. Rexe4 {[%emt 0:00:43]} Rab4 {[%emt 0:00:33]} 32. Ka3 {[%emt 0:00:41]} f5 {[%emt 0:00:58]} 33. Re1 {[%emt 0:04:24]} a4 {[%emt 0:00:17]} 34. Rc1 {[%emt 0:00:50]} Kd6 {[%emt 0:01:14]} 35. Rh3 {[%emt 0:00:47]} axb3 {[%emt 0:00:58]} 36. Rxb3 {[%emt 0:01:07]} Rxb3+ {[%emt 0:02:17]} 37. Bxb3 {[%emt 0:00:01]} Re8 {[%emt 0:00:45]} 38. Ba4 $17 {[%emt 0:01:04]} Rc8 {[%emt 0:00:16]} 39. Rb1 {[%emt 0:00:00]} Ra8 {[%emt 0:00:00]} 40. Rb3 {[%emt 0:01:10]} Kc5 {[%emt 0:00:54]} 41. Rf3 {[%emt 0:02:33]} Nb6 {[%emt 0:06:43]} 42. Rxf5+ {[%emt 0:01:02]} Kd4 {[%emt 0:03:36]} 43. Rf7 {[%emt 0:02:39]} Kc3 {[%emt 0:02:49]} 44. Rf3+ {[%emt 0:04:48]} Kd2 {[%emt 0:00:14]} 45. Rf7 {[%emt 0:00:34]} Rxa4+ {[%emt 0:00:32]} 46. Kb3 {[%emt 0:00:01]} Rg4 {[%emt 0:00:16]} 47. g3 {[%emt 0:00:01]} c5 {[%emt 0:01:02]} 48. Rb7 {[%emt 0:01:09]} Rb4+ {[%emt 0:01:51]} 49. Ka2 {[%emt 0:00:06]} Kc2 {[%emt 0:00:10]} 0-1

[Event "WYCC 2018 O18"]
[Site "Halkidiki"]
[Date "2018.10.24"]
[Round "6"]
[White "Muha, Miljenko"]
[Black "Giesinger, Elias"]
[Result "1/2-1/2"]
[ECO "E10"]
[WhiteElo "2365"]
[BlackElo "2131"]
[Annotator "NA"]
[PlyCount "62"]
[EventDate "2018.10.20"]
[EventType "swiss"]
[EventCountry "GRE"]
[SourceTitle "playchess.com"]
[Source "ChessBase"]
[SourceQuality "1"]
[TimeControl "40/5400+30:1800+30"]

1. d4 {[%emt 0:00:00]} Nf6 {[%emt 0:00:00]} 2. c4 {[%emt 0:00:00]} e6 {[%emt 0:00:00]} 3. Nf3 {[%emt 0:00:09]} d5 {[%emt 0:01:22]} 4. e3 {[%emt 0:00:18]} Be7 {[%emt 0:01:45]} 5. b3 {[%emt 0:00:08]} O-O {[%emt 0:01:49]} 6. Bb2 {[%emt 0:01:47]} b6 {[%emt 0:01:11]} 7. Bd3 {[%emt 0:01:37] LiveBook: 59 Games} Bb7 {[%emt 0:00:27]} 8. O-O {[%emt 0:01:12]} Nbd7 {[%emt 0:02:32]} 9. Nbd2 {[%emt 0:01:16]} Ne4 {[%emt 0:05:44] D05: Colle System with ...e6} 10. cxd5 {[%emt 0:04:15]} (10. Qc2 f5 11. Ne5 Nxe5 12. dxe5 Nxd2 13. Qxd2 dxc4 14. bxc4 Be4 15. Rfd1 Bxd3 16. Qc3 Qe8 17. Rxd3 {1-0 (95) Nakamura,H (2777)-Hou,Y (2658) chess.com INT 2018}) 10... exd5 {[%emt 0:03:13]} 11. Ne5 {[%emt 0:05:07]} Bd6 {[%emt 0:18:45]} 12. f4 {[%emt 0:02:31]} Qe7 {[%emt 0:03:06]} 13. Ndf3 $146 {[%emt 0:22:59]} ({Predecessor:} 13. Nxe4 dxe4 14. Be2 Nf6 15. Nc4 Rfd8 16. Nxd6 Qxd6 17. a4 a5 {0-1 (51) Rashkovsky,N (2530)-Gurevich,M (2625) Moscow 1992}) 13... f6 {[%emt 0:08:48]} 14. Nxd7 {[%emt 0:03:31]} Qxd7 {[%emt 0:01:35]} 15. Qe1 {[%emt 0:05:29]} a5 {[%emt 0:09:56]} 16. a4 {[%emt 0:00:38]} Ba6 {[%emt 0:01:14]} 17. Bxa6 {[%emt 0:02:52]} Rxa6 {[%emt 0:01:32]} 18. Qh4 {[%emt 0:01:03]} ({White should try} 18. Ba3 $15) 18... c5 {[%emt 0:04:21]} 19. dxc5 {[%emt 0:02:21]} bxc5 {[%emt 0:07:32]} 20. Rfd1 {[%emt 0:11:27]} Qe6 {[%emt 0:03:56]} 21. Qh5 {[%emt 0:02:09]} Rb6 {[%emt 0:01:07]} 22. Qxd5 {[%emt 0:06:55]} Qxd5 {[%emt 0:00:14]} 23. Rxd5 {[%emt 0:00:07]} Rxb3 {[%emt 0:00:45]} 24. Bc1 {[%emt 0:02:25]} Rfb8 {[%emt 0:01:07]} 25. Nd2 {[%emt 0:01:44]} Nxd2 {[%emt 0:00:56]} 26. Bxd2 {[%emt 0:02:58]} Rb1+ $11 {[%emt 0:00:56]} 27. Rxb1 {[%emt 0:00:19]} Rxb1+ {[%emt 0:00:05]} 28. Kf2 {[%emt 0:00:05]} Bf8 {[%emt 0:00:23]} 29. Bxa5 {[%emt 0:02:06]} Ra1 {[%emt 0:00:38]} 30. Bb6 {[%emt 0:07:54]} Rxa4 {[%emt 0:00:05]} 31. Kf3 {[%emt 0:01:03]} Ra6 {[%emt 0:02:27]} 1/2-1/2

[Event "WYCC 2018 O18"]
[Site "Halkidiki"]
[Date "2018.10.24"]
[Round "6"]
[White "Roshka, Yevgeniy"]
[Black "Bratkovic, Jakob"]
[Result "1-0"]
[ECO "A05"]
[WhiteElo "2328"]
[BlackElo "2242"]
[Annotator "NA"]
[PlyCount "71"]
[EventDate "2018.10.20"]
[EventType "swiss"]
[EventCountry "GRE"]
[SourceTitle "playchess.com"]
[Source "ChessBase"]
[SourceQuality "1"]
[TimeControl "40/5400+30:1800+30"]

1. Nf3 {[%emt 0:00:00]} Nf6 {[%emt 0:02:25]} 2. g3 {[%emt 0:00:02]} e6 {[%emt 0:02:26]} 3. Bg2 {[%emt 0:00:06]} c5 {[%emt 0:01:39]} 4. O-O {[%emt 0:01:11]} Nc6 {[%emt 0:00:28]} 5. d4 {[%emt 0:02:10]} d5 {[%emt 0:03:29]} 6. c4 {[%emt 0:01:56]} dxc4 {[%emt 0:02:37]} 7. Qa4 {[%emt 0:00:51]} Bd7 {[%emt 0:02:27] LiveBook: 588 Games} 8. Qxc4 {[%emt 0:05:44]} b5 {[%emt 0:11:36]} 9. Qd3 {[%emt 0:04:22]} c4 {[%emt 0:02:40]} 10. Qd1 {[%emt 0:00:09]} Rc8 {[%emt 0:00:30]} 11. e4 {[%emt 0:03:47] E04: Open Catalan: 5 Nf3} (11. b3 Na5 12. Ne5 cxb3 13. axb3 Rxc1 14. Qxc1 Nxb3 15. Qb2 Nxa1 16. Qxa1 Bd6 17. Qxa7 O-O 18. Nxd7 Nxd7 {½-½ (77) Yu,Y (2751)-Harikrishna,P (2744) Huaian 2017}) 11... Nxe4 {[%emt 0:07:01]} 12. Re1 {[%emt 0:00:08]} Nf6 {[%emt 0:04:53]} 13. d5 {[%emt 0:00:57]} Nb4 {[%emt 0:00:27]} 14. Ng5 $146 {[%emt 0:01:43]} ({Predecessor:} 14. Ne5 Nbxd5 15. Nc3 Nxc3 16. bxc3 Be7 17. Qd4 Qb6 18. Qh4 Rc7 {0-1 (46) Weinberger,T-Horowitz,I New York,NY 1968}) 14... Bc5 {[%emt 0:03:48]} 15. dxe6 {[%emt 0:01:10]} Bxe6 {[%emt 0:03:18]} 16. Nxe6 {[%emt 0:04:49]} Qxd1 {[%emt 0:01:54]} 17. Nxg7+ {[%emt 0:02:26]} Kf8 {[%emt 0:00:28]} 18. Rxd1 {[%emt 0:00:07]} Kxg7 {[%emt 0:03:12]} 19. Nc3 {[%emt 0:01:12]} Nd3 {[%emt 0:01:25]} 20. Nxb5 {[%emt 0:04:24]} Nxf2 {[%emt 0:00:50]} 21. Rf1 {[%emt 0:00:32]} N6g4 {[%emt 0:05:21]} 22. Bd5 {[%emt 0:03:37]} Bb6 {[%emt 0:08:22]} 23. Kg2 {[%emt 0:01:25]} Nf6 {[%emt 0:01:46]} 24. Bf3 {[%emt 0:01:33]} Nd3 {[%emt 0:00:13]} 25. Bd2 {[%emt 0:05:08]} Rc5 {[%emt 0:05:15]} 26. a4 {[%emt 0:03:35]} Nd5 $2 {[%emt 0:02:52]} (26... a6 $1 $14) 27. Nd6 {[%emt 0:04:14]} c3 {[%emt 0:04:22]} 28. bxc3 {[%emt 0:01:13]} Nxc3 {[%emt 0:00:20]} 29. Ra3 {[%emt 0:01:43]} Rd8 {[%emt 0:01:51]} 30. Bxc3+ {[%emt 0:00:18]} Rxc3 {[%emt 0:00:04]} 31. Nf5+ $18 {[%emt 0:00:20]} Kf6 {[%emt 0:00:35]} 32. Rxc3 {[%emt 0:00:05]} Ba5 {[%emt 0:00:04]} 33. Rc6+ {[%emt 0:00:55]} Kxf5 {[%emt 0:00:08]} 34. Be2+ {[%emt 0:00:08]} Ke4 {[%emt 0:00:05]} 35. Bxd3+ {[%emt 0:00:33]} Rxd3 {[%emt 0:00:04]} 36. Rxf7 {[%emt 0:00:08]} 1-0